bitfinex/quotes_BTCUSD_20250225
["timestamp","ask_amount","ask_price","bid_price","bid_amount"]
[1740513950932,0.170263,88099.0,88090.0,0.01454085]
[1740513951131,0.002,88098.0,88091.0,0.01274439]
[1740513951336,0.001,88098.0,88091.0,0.01454085]
[1740513951614,0.54467708,88148.0,88092.0,0.01274439]
[1740513951815,0.340399,88132.0,88093.0,0.01454085]
[1740513952106,0.170259,88101.0,88093.0,0.01454085]
[1740513952298,0.001,88099.0,88094.0,0.01266547]
[1740513952502,0.171263,88099.0,88094.0,0.01266547]
[1740513952696,0.170266,88098.0,88089.0,0.01466874]
[1740513952941,0.001,88099.0,88096.0,0.01454085]
[1740513953116,0.002,88098.0,88092.0,0.170276]
[1740513953358,0.002,88098.0,88093.0,0.01454085]
[1740513953556,0.002,88098.0,88093.0,0.02720632]
[1740513954335,0.002,88098.0,88093.0,0.02820632]
[1740513954509,0.226972,88117.0,88093.0,0.02820632]
[1740513954830,0.002,88099.0,88093.0,0.01266547]
[1740513955030,0.04361677,88121.0,88094.0,0.01454085]
[1740513955232,0.04361677,88121.0,88094.0,0.18481285]
[1740513955391,0.002,88098.0,88089.0,0.01466874]
[1740513955595,0.170258,88102.0,88090.0,0.126413]
[1740513955773,0.226973,88116.0,88094.0,0.01454085]
[1740513956005,0.17027,88095.0,88094.0,0.01454085]
[1740513956323,0.170272,88094.0,88093.0,0.001]
[1740513956929,0.0008469,88101.0,88093.0,0.001]
[1740513957194,0.00106007,88094.0,88089.0,0.00012789]
[1740513957539,0.00106007,88094.0,88093.0,0.18481485]
[1740513957979,0.00106007,88094.0,88093.0,0.29856238]
[1740513958940,0.00106007,88094.0,88093.0,0.31122785]
[1740513959162,0.00106007,88094.0,88093.0,0.31222785]
[1740513959792,0.00106007,88094.0,88093.0,0.14195385]
[1740513959969,0.17133207,88094.0,88093.0,0.01366547]
[1740513960169,0.17133207,88094.0,88093.0,0.001]
[1740513960369,0.21622215,88094.0,88093.0,0.001]
[1740513960570,0.17028,88090.0,88089.0,0.00012789]
[1740513960751,0.04595015,88094.0,88093.0,0.004]
[1740513960952,0.17133207,88094.0,88093.0,0.004]
[1740513961153,0.00106007,88094.0,88093.0,0.18881485]
[1740513961356,0.00106007,88094.0,88093.0,0.2770433]
[1740513961668,0.00206007,88094.0,88093.0,0.1037693]
[1740513961871,0.00406007,88094.0,88093.0,0.1037693]
[1740513962293,0.00206007,88094.0,88093.0,0.1037693]
[1740513962478,0.00206007,88094.0,88093.0,0.1067693]
[1740513962691,0.00206007,88094.0,88093.0,0.09414085]
[1740513962692,0.00106007,88094.0,88093.0,0.09414085]
[1740513962896,0.00106007,88094.0,88093.0,0.10682571]
[1740513963127,0.00106007,88094.0,88093.0,0.27709971]
[1740513963688,0.00106007,88094.0,88093.0,0.10682571]
[1740513963908,0.00106007,88094.0,88093.0,0.27709971]
[1740513964316,0.00106007,88094.0,88093.0,0.39084724]
[1740513964794,0.00106007,88094.0,88093.0,0.72718724]
[1740513964993,0.00106007,88094.0,88093.0,1.02718724]
[1740513965231,0.00106007,88094.0,88093.0,1.02466156]
[1740513965428,0.00106007,88094.0,88093.0,1.03018724]
[1740513965553,0.00106007,88094.0,88093.0,1.0742254]
[1740513965749,7e-08,88094.0,88093.0,1.0712254]
[1740513965953,0.0492,88162.0,88136.0,0.17019]
[1740513966275,0.32786116,88167.0,88137.0,0.01262717]
[1740513966459,0.0008478,88168.0,88139.0,0.01454085]
[1740513966604,0.0008478,88168.0,88141.0,0.01454085]
[1740513966960,0.0008478,88168.0,88143.0,0.31454085]
[1740513967169,0.00127447,88168.0,88144.0,0.11374753]
[1740513967390,0.00127447,88168.0,88144.0,0.12622696]
[1740513967531,0.0449474,88168.0,88145.0,0.01454085]
[1740513967730,0.0449474,88168.0,88147.0,0.01454085]
[1740513967934,0.0449474,88168.0,88147.0,0.12828838]
[1740513968137,0.170164,88150.0,88149.0,0.01454085]
[1740513968529,0.0449474,88168.0,88150.0,0.01454085]
[1740513968724,0.0449474,88168.0,88152.0,0.01454085]
[1740513969088,0.170152,88157.0,88154.0,0.01454085]
[1740513969292,0.170139,88163.0,88154.0,0.01454085]
[1740513969607,0.0449474,88168.0,88155.0,0.01247943]
[1740513969793,0.0449474,88168.0,88156.0,0.01454085]
[1740513970078,0.0449474,88168.0,88153.0,0.01454085]
[1740513970597,0.0449474,88168.0,88154.0,0.006]
[1740513971152,0.170154,88155.0,88154.0,0.006]
[1740513971243,0.0449474,88168.0,88167.0,0.170131]
[1740513971477,0.00127447,88168.0,88160.0,0.01454085]
[1740513971707,0.00127447,88168.0,88167.0,0.01230882]
[1740513971917,0.00117777,88168.0,88160.0,0.01454085]
[1740513972630,0.00117777,88168.0,88167.0,0.01454085]
[1740513972833,0.17130677,88168.0,88167.0,0.01554085]
[1740513973039,0.00117777,88168.0,88167.0,0.18567185]
[1740513973244,0.00117777,88168.0,88167.0,0.19798067]
[1740513973465,0.00117777,88168.0,88167.0,0.3107282]
[1740513973878,0.00117777,88168.0,88167.0,0.1405972]
[1740513974027,0.00117777,88168.0,88167.0,0.1435972]
[1740513974614,0.00117777,88168.0,88167.0,0.01530882]
[1740513974615,0.17130677,88168.0,88167.0,0.01530882]
[1740513975039,0.17130677,88168.0,88167.0,0.003]
[1740513975247,0.17130677,88168.0,88167.0,0.01]
[1740513975450,0.17130677,88168.0,88167.0,0.007]
[1740513975655,0.00117777,88168.0,88153.0,0.01454085]
[1740513975894,0.00117777,88168.0,88149.0,0.0784]
[1740513975895,0.00117777,88168.0,88167.0,0.01954085]
[1740513976217,0.00117777,88168.0,88167.0,0.02054085]
[1740513976593,0.00117777,88168.0,88167.0,0.19698067]
[1740513976968,0.00117777,88168.0,88167.0,0.02684967]
[1740513977214,0.00117777,88168.0,88167.0,0.3107282]
[1740513977633,0.00117777,88168.0,88167.0,0.3920282]
[1740513977832,0.00117777,88168.0,88167.0,0.7171282]
[1740513978184,0.00117777,88168.0,88167.0,1.06143001]
[1740513978376,0.0130206,88196.0,88182.0,0.170102]
[1740513978579,0.00097489,88183.0,88182.0,0.71023038]
[1740513978821,0.00097489,88183.0,88182.0,0.7225392]
[1740513979022,0.00097489,88183.0,88182.0,1.55446558]
[1740513979604,0.0130206,88196.0,88186.0,0.470095]
[1740513979924,0.0130206,88196.0,88186.0,0.67388338]
[1740513980153,0.0130206,88196.0,88189.0,0.170089]
[1740513980338,0.0130206,88196.0,88189.0,1.48989064]
[1740513980493,0.0130206,88196.0,88189.0,1.58830376]
[1740513980699,0.0130206,88196.0,88189.0,1.60061258]
[1740513981306,0.0130206,88196.0,88195.0,0.25971785]
[1740513981510,0.0130206,88196.0,88195.0,0.37346538]
[1740513981738,0.0130206,88196.0,88195.0,0.38558075]
[1740513982944,0.0130206,88196.0,88195.0,0.22250375]
[1740513983141,0.0130206,88196.0,88195.0,0.40878075]
[1740513983322,0.0130206,88196.0,88195.0,0.70378075]
[1740513983525,0.0130206,88196.0,88195.0,0.69678075]
[1740513983778,0.0130206,88196.0,88195.0,0.70378075]
[1740513983968,0.0130206,88196.0,88195.0,0.6892399]
[1740513984163,0.0130206,88196.0,88195.0,0.70378075]
[1740513984569,0.0130206,88196.0,88195.0,1.51250713]
[1740513984760,0.0130206,88196.0,88195.0,1.51750713]
[1740513984962,0.0130206,88196.0,88195.0,1.50550713]
[1740513985174,0.0130206,88196.0,88195.0,1.51250713]
[1740513985412,0.0130206,88196.0,88195.0,1.51750713]
[1740513985620,7e-05,88236.0,88222.0,0.170023]
[1740513985767,0.170006,88233.0,88223.0,0.14037042]
[1740513985968,0.21420632,88236.0,88223.0,0.14037042]
[1740513986240,0.00019779,88236.0,88224.0,0.170021]
[1740513986366,0.226634,88248.0,88226.0,0.01454085]
[1740513986568,0.16999,88241.0,88228.0,0.01454085]
[1740513986773,0.16999,88241.0,88226.0,0.17014379]
[1740513986774,0.04418192,88243.0,88230.0,0.01454085]
[1740513986973,0.169986,88243.0,88232.0,0.01454085]
[1740513987175,0.169992,88240.0,88234.0,0.01454085]
[1740513987377,0.226666,88236.0,88235.0,0.01208204]
[1740513987594,0.169998,88236.0,88229.0,0.0756]
[1740513987779,0.000846,88257.0,88231.0,0.01454085]
[1740513988012,0.226621,88253.0,88231.0,0.12828838]
[1740513988214,0.169974,88249.0,88233.0,0.01454085]
[1740513988425,0.000846,88257.0,88233.0,0.01454085]
[1740513988426,0.002,88248.0,88235.0,0.01454085]
[1740513988724,0.002,88248.0,88236.0,0.01175951]
[1740513988892,0.000846,88257.0,88236.0,0.01175951]
[1740513989074,0.169996,88237.0,88236.0,0.01175951]
[1740513989478,0.17,88235.0,88234.0,0.01454085]
[1740513989707,0.170015,88227.0,88223.0,0.3251]
[1740513989906,0.04555086,88257.0,88226.0,0.11387532]
[1740513990120,0.04555086,88257.0,88229.0,0.01454085]
[1740513990327,0.04555086,88257.0,88227.0,0.1153341]
[1740513990328,0.226642,88245.0,88231.0,0.01454085]
[1740513990493,0.04555086,88257.0,88233.0,0.01454085]
[1740513990694,0.04555086,88257.0,88235.0,0.24120785]
[1740513990695,0.34555086,88257.0,88235.0,0.24120785]
[1740513990899,0.226613,88256.0,88240.0,0.01454085]
[1740513991100,0.16996,88256.0,88242.0,0.226649]
[1740513991328,0.04755086,88257.0,88247.0,0.226635]
[1740513991529,0.04755086,88257.0,88248.0,0.01454085]
[1740513991726,0.169965,88254.0,88248.0,0.02623709]
[1740513991945,0.169967,88252.0,88248.0,0.02623709]
[1740513992256,0.0008454,88249.0,88248.0,0.02623709]
[1740513992592,0.0008454,88249.0,88248.0,0.30995962]
[1740513992762,0.0008454,88249.0,88248.0,0.38945962]
[1740513992946,0.0008454,88249.0,88248.0,0.40145962]
[1740513993121,0.0008454,88249.0,88248.0,0.39645962]
[1740513993508,0.0008454,88249.0,88248.0,0.03323709]
[1740513993713,0.1708184,88249.0,88248.0,0.03323709]
[1740513993954,0.1708184,88249.0,88248.0,0.02154085]
[1740513994346,0.16665837,88245.0,88242.0,0.01454085]
[1740513994546,0.2274784,88249.0,88248.0,0.005]
[1740513994773,0.3974514,88249.0,88248.0,0.012]
[1740513995152,0.3974514,88249.0,88248.0,0.02366932]
[1740513995352,0.3974514,88249.0,88248.0,0.01866932]
[1740513995535,0.3974514,88249.0,88248.0,0.007]
[1740513996255,0.0008454,88249.0,88248.0,0.005]
[1740513996456,0.1708184,88249.0,88248.0,0.005]
[1740513996665,0.1708184,88249.0,88248.0,0.01653599]
[1740513996869,0.1708184,88249.0,88248.0,0.005]
[1740513997048,0.4708184,88249.0,88248.0,0.005]
[1740513997627,0.4708184,88249.0,88248.0,0.007]
[1740513997821,0.4678184,88249.0,88248.0,0.007]
[1740513998156,0.3,88248.0,88226.0,0.00012779]
[1740513998501,0.3,88252.0,88248.0,0.001]
[1740513998702,0.469973,88249.0,88248.0,0.001]
[1740513998914,0.170006,88232.0,88228.0,0.01454085]
[1740513999212,0.00869304,88255.0,88229.0,0.01454085]
[1740513999346,0.226656,88240.0,88229.0,0.02607684]
[1740513999551,0.000846,88257.0,88231.0,0.01454085]
[1740513999752,0.000846,88257.0,88241.0,0.01454085]
[1740513999753,0.16997,88251.0,88241.0,0.01454085]
[1740513999949,0.226621,88253.0,88243.0,0.01454085]
[1740514000270,0.000846,88257.0,88243.0,0.12828838]
[1740514000472,0.000846,88257.0,88244.0,0.01153599]
[1740514000675,0.169981,88245.0,88244.0,0.01153599]
[1740514001106,0.000846,88257.0,88220.0,0.02037677]
[1740514001107,0.226627,88251.0,88220.0,0.02037677]
[1740514001265,0.170012,88229.0,88228.0,0.004]
[1740514001481,0.170012,88229.0,88228.0,0.11774753]
[1740514001689,0.000846,88257.0,88228.0,0.11774753]
[1740514001690,0.226613,88256.0,88228.0,0.12928352]
[1740514001891,0.000846,88257.0,88230.0,0.01454085]
[1740514002272,0.000846,88257.0,88232.0,0.01454085]
[1740514002464,0.000846,88257.0,88244.0,0.004]
[1740514002604,0.000846,88257.0,88245.0,0.11374753]
[1740514002812,0.169971,88251.0,88246.0,0.01153599]
[1740514002991,0.000846,88257.0,88246.0,0.01153599]
[1740514002992,0.001,88257.0,88247.0,0.11374753]
[1740514003194,0.169966,88253.0,88248.0,0.01150974]
[1740514003447,0.001,88257.0,88248.0,0.12525727]
[1740514003677,0.169967,88252.0,88248.0,0.12525727]
[1740514003806,0.001,88257.0,88248.0,0.12525727]
[1740514004007,0.22761,88257.0,88248.0,0.12525727]
[1740514004320,0.03715246,88266.0,88248.0,0.11374753]
[1740514004524,0.226579,88270.0,88252.0,0.169966]
[1740514004738,0.17096,88257.0,88252.0,0.169967]
[1740514004934,0.226605,88260.0,88248.0,0.11374753]
[1740514005159,0.169963,88254.0,88253.0,0.01150974]
[1740514005353,0.169963,88254.0,88248.0,0.004]
[1740514005354,0.169973,88249.0,88248.0,0.01]
[1740514005556,0.1708177,88249.0,88248.0,0.006]
[1740514005932,0.0008447,88249.0,88232.0,0.01128]
[1740514006157,0.3974507,88249.0,88248.0,0.005]
[1740514007455,0.169992,88239.0,88233.0,0.35994953]
[1740514007780,0.0008447,88249.0,88248.0,0.012]
[1740514008003,0.1708177,88249.0,88248.0,0.012]
[1740514008138,0.1708177,88249.0,88248.0,0.01429092]
[1740514008343,0.1708177,88249.0,88248.0,0.005]
[1740514008546,0.1708177,88249.0,88248.0,0.169975]
[1740514008547,0.0008447,88249.0,88248.0,0.169975]
[1740514008766,0.169975,88248.0,88241.0,0.169987]
[1740514008998,0.0008447,88249.0,88248.0,0.00929092]
[1740514009415,0.1708177,88249.0,88248.0,0.001]
[1740514010308,0.1678177,88249.0,88248.0,0.001]
[1740514010770,0.16998,88246.0,88238.0,0.169994]
[1740514010916,0.16998,88246.0,88236.0,0.226662]
[1740514011277,0.3,88277.0,88237.0,0.11374753]
[1740514011507,0.03693059,88270.0,88237.0,0.12303845]
[1740514011688,0.16998,88246.0,88238.0,0.169993]
[1740514011993,0.169994,88238.0,88237.0,0.12303845]
[1740514012312,0.0369276,88270.0,88237.0,0.12303845]
[1740514012634,0.003,88270.0,88237.0,0.12303845]
[1740514012836,0.169975,88248.0,88238.0,0.004]
[1740514013039,0.22658,88269.0,88239.0,0.11374753]
[1740514013285,0.22658,88269.0,88240.0,0.226654]
[1740514013286,0.169956,88259.0,88240.0,0.226654]
[1740514013601,0.16996,88256.0,88241.0,0.11374753]
[1740514013804,0.16996,88256.0,88249.0,0.169972]
[1740514014000,0.00042572,88269.0,88245.0,0.16998]
[1740514014205,0.16997,88251.0,88244.0,0.169982]
[1740514014432,0.169967,88252.0,88246.0,0.17926992]
[1740514014612,0.169964,88254.0,88241.0,0.11374753]
[1740514014745,0.00042572,88269.0,88247.0,0.00929092]
[1740514014950,0.00042572,88269.0,88248.0,0.11374753]
[1740514015187,0.226601,88261.0,88248.0,0.12303845]
[1740514015436,0.00042572,88269.0,88252.0,0.169967]
[1740514015621,0.00042572,88269.0,88249.0,0.077]
[1740514015817,0.226613,88256.0,88250.0,0.00929092]
[1740514016020,0.00042572,88269.0,88250.0,0.00929092]
[1740514016021,0.226596,88263.0,88250.0,0.00929092]
[1740514016196,0.00042572,88269.0,88250.0,0.00929092]
[1740514016548,0.169956,88258.0,88251.0,0.169969]
[1740514016756,0.00242572,88269.0,88250.0,0.00929092]
[1740514017059,0.00242572,88269.0,88251.0,0.00929092]
[1740514017265,0.00242572,88269.0,88252.0,0.169967]
[1740514017394,0.00042572,88269.0,88251.0,0.00929092]
[1740514017802,0.169966,88253.0,88251.0,0.00929092]
[1740514017994,0.169966,88253.0,88249.0,0.077]
[1740514018203,0.169973,88249.0,88248.0,0.004]
[1740514018472,0.169988,88242.0,88240.0,0.0812]
[1740514018755,0.169967,88253.0,88251.0,0.005]
[1740514018914,0.169967,88252.0,88251.0,0.005]
[1740514019119,0.169967,88252.0,88251.0,0.004]
[1740514019343,0.03784897,88270.0,88240.0,0.0812]
[1740514019515,0.169973,88249.0,88248.0,0.007]
[1740514019861,0.169973,88249.0,88248.0,0.012]
[1740514020058,0.169973,88249.0,88248.0,0.007]
[1740514020668,0.226585,88267.0,88248.0,0.007]
[1740514020822,0.3,88275.0,88249.0,0.169971]
[1740514021023,0.169973,88249.0,88248.0,0.007]
[1740514021295,0.169971,88251.0,88244.0,0.169982]
[1740514021597,0.169968,88252.0,88245.0,0.169979]
[1740514021814,0.169968,88252.0,88251.0,0.006]
[1740514022023,0.169968,88252.0,88238.0,0.001689]
[1740514022024,0.0396587,88252.0,88238.0,0.001689]
[1740514022233,0.169992,88239.0,88238.0,0.001689]
[1740514022652,0.1008455,88272.0,88238.0,0.001689]
[1740514022856,0.169992,88239.0,88238.0,0.001689]
[1740514023086,0.226654,88241.0,88238.0,0.001689]
[1740514023087,0.169989,88241.0,88238.0,0.001689]
[1740514023298,0.03720163,88270.0,88241.0,0.169987]
[1740514023299,0.22663,88250.0,88241.0,0.169987]
[1740514023498,0.169975,88249.0,88242.0,0.169985]
[1740514023656,0.00127022,88268.0,88242.0,0.11374753]
[1740514023854,0.002,88261.0,88242.0,0.11374753]
[1740514024273,0.002,88261.0,88245.0,0.169979]
[1740514024472,0.169967,88252.0,88245.0,0.169979]
[1740514024694,0.169968,88252.0,88244.0,0.169982]
[1740514024940,0.169992,88239.0,88238.0,0.005689]
[1740514025152,0.169992,88239.0,88238.0,0.001689]
[1740514025354,0.226585,88267.0,88238.0,0.001689]
[1740514025578,0.001,88241.0,88238.0,0.001689]
[1740514025898,0.16999,88240.0,88239.0,0.00763559]
[1740514026091,0.169992,88239.0,88238.0,0.004689]
[1740514026610,0.169992,88239.0,88238.0,0.001689]
[1740514026871,0.169992,88239.0,88238.0,0.005689]
[1740514027267,0.169992,88239.0,88238.0,0.008689]
[1740514027705,0.169992,88239.0,88238.0,0.005689]
[1740514027936,0.169992,88239.0,88238.0,0.012689]
[1740514027937,0.170992,88239.0,88238.0,0.012689]
[1740514028285,0.170992,88239.0,88238.0,0.008689]
[1740514028492,0.170992,88239.0,88238.0,0.006689]
[1740514028493,0.169992,88239.0,88238.0,0.006689]
[1740514028897,0.049,88246.0,88238.0,0.006689]
[1740514028898,0.049,88259.0,88238.0,0.006689]
[1740514029110,0.10084384,88268.0,88238.0,0.006689]
[1740514029312,0.170992,88239.0,88238.0,0.012689]
[1740514030571,0.169992,88239.0,88238.0,0.006689]
[1740514031388,0.469992,88239.0,88238.0,0.006689]
[1740514031804,0.469992,88239.0,88238.0,0.007689]
[1740514033144,0.169992,88239.0,88238.0,0.007689]
[1740514034554,0.170012,88229.0,88228.0,0.0016894]
[1740514036570,0.226634,88248.0,88228.0,0.0016894]
[1740514036984,0.001,88229.0,88228.0,0.0026894]
[1740514037176,0.171012,88229.0,88228.0,0.0026894]
[1740514037400,0.170012,88229.0,88228.0,0.00949295]
[1740514037605,0.170012,88229.0,88228.0,0.0016894]
[1740514037777,0.170012,88229.0,88228.0,0.0026894]
[1740514038240,0.170012,88229.0,88228.0,0.0016894]
[1740514038631,0.170012,88229.0,88228.0,0.0026894]
[1740514040015,0.170012,88229.0,88228.0,0.0016894]
[1740514040479,0.1,88242.0,88195.0,0.0785]
[1740514040629,0.170075,88196.0,88195.0,0.0785]
[1740514040834,0.170075,88196.0,88195.0,0.07862779]
[1740514041380,0.170075,88196.0,88195.0,0.00012779]
[1740514041932,0.03785985,88196.0,88195.0,0.00012779]
[1740514042134,0.226751,88203.0,88195.0,0.00012779]
[1740514042360,0.001,88196.0,88195.0,0.00312779]
[1740514042886,0.001,88196.0,88195.0,0.17320479]
[1740514043032,0.226724,88213.0,88195.0,0.00312779]
[1740514043223,0.17589934,88242.0,88195.0,0.22989579]
[1740514043430,0.170039,88215.0,88204.0,0.170058]
[1740514043628,0.170046,88212.0,88196.0,0.0826]
[1740514043869,0.170037,88216.0,88196.0,0.0826]
[1740514044050,0.03834274,88216.0,88196.0,0.1303]
[1740514044246,0.170033,88218.0,88207.0,0.170052]
[1740514044447,0.0008482,88238.0,88197.0,0.11374753]
[1740514044716,0.3,88233.0,88203.0,0.170061]
[1740514044924,0.3,88233.0,88197.0,0.11374753]
[1740514045127,0.00855894,88225.0,88196.0,0.0816]
[1740514045294,0.170073,88197.0,88196.0,0.0816]
[1740514045504,0.170075,88196.0,88195.0,0.00012779]
[1740514046687,0.20805464,88196.0,88195.0,0.00012779]
[1740514047921,0.50805464,88196.0,88195.0,0.00412779]
[1740514048606,0.50805464,88196.0,88195.0,0.00012779]
[1740514049631,0.20805464,88196.0,88195.0,0.00012779]
[1740514050032,0.20805464,88196.0,88195.0,0.00112779]
[1740514051322,0.03797964,88196.0,88195.0,0.00112779]
[1740514051682,0.170075,88196.0,88195.0,0.00665195]
[1740514051873,0.170075,88196.0,88195.0,0.00112779]
[1740514052195,0.20685566,88196.0,88195.0,0.00112779]
[1740514052712,0.20685566,88196.0,88195.0,0.00665195]
[1740514053015,0.03678066,88196.0,88195.0,0.00012779]
[1740514053205,0.20685566,88196.0,88195.0,0.00012779]
[1740514053448,0.170075,88196.0,88195.0,0.00312779]
[1740514053635,0.2325709,88196.0,88195.0,0.00312779]
[1740514053840,0.26916808,88196.0,88195.0,0.00012779]
[1740514054042,0.20667218,88196.0,88195.0,0.00012779]
[1740514054300,0.20667218,88196.0,88195.0,0.00412779]
[1740514054487,0.50667218,88196.0,88195.0,0.00412779]
[1740514054695,0.50667218,88196.0,88195.0,0.00012779]
[1740514055250,0.50567272,88196.0,88195.0,0.00012779]
[1740514055452,0.170129,88168.0,88166.0,0.0788]
[1740514055662,0.170129,88168.0,88167.0,0.00181869]
[1740514056321,0.20681508,88168.0,88167.0,0.00181869]
[1740514057061,0.03668608,88168.0,88167.0,0.00181869]
[1740514057258,0.001,88168.0,88167.0,0.00781869]
[1740514057439,0.20875488,88168.0,88167.0,0.00781869]
[1740514057671,0.171129,88168.0,88167.0,0.00781869]
[1740514057827,0.170129,88168.0,88167.0,0.00181869]
[1740514058022,0.173129,88168.0,88167.0,0.00181869]
[1740514058284,0.21054895,88168.0,88167.0,0.00181869]
[1740514059245,0.003,88168.0,88167.0,0.17194969]
[1740514059462,0.003,88168.0,88167.0,0.36449722]
[1740514059661,0.003,88168.0,88167.0,0.70413807]
[1740514059862,0.03795163,88193.0,88167.0,0.46652707]
[1740514060063,0.226716,88216.0,88195.0,0.248877]
[1740514060266,0.3293,88225.0,88195.0,0.41132453]
[1740514060470,0.226758,88200.0,88195.0,0.1275]
[1740514060678,0.03812012,88204.0,88195.0,0.1275]
[1740514060679,0.226753,88202.0,88195.0,0.1275]
[1740514060879,0.170073,88198.0,88195.0,0.1275]
[1740514061092,0.03812012,88204.0,88195.0,0.1275]
[1740514061295,0.1709236,88196.0,88195.0,0.0788]
[1740514061715,0.1719236,88196.0,88195.0,0.0838]
[1740514061923,0.1719236,88196.0,88195.0,0.005]
[1740514062519,0.0018486,88196.0,88195.0,0.005]
[1740514062682,0.1719236,88196.0,88195.0,0.005]
[1740514062884,0.0008486,88196.0,88186.0,0.170094]
[1740514063209,0.170087,88190.0,88183.0,0.226801]
[1740514063434,0.0018486,88196.0,88187.0,0.09065156]
[1740514063595,0.0018486,88196.0,88195.0,0.170077]
[1740514063797,0.0008486,88196.0,88195.0,0.170077]
[1740514064032,0.0008486,88196.0,88193.0,0.170079]
[1740514064229,0.0008486,88196.0,88192.0,0.0459]
[1740514064463,0.22677,88195.0,88187.0,0.09065156]
[1740514064666,0.0008486,88196.0,88187.0,0.09065156]
[1740514064855,0.1719236,88196.0,88195.0,0.005]
[1740514065058,0.3986926,88196.0,88195.0,0.005]
[1740514065363,0.0018486,88196.0,88195.0,0.175077]
[1740514065933,0.0018486,88196.0,88195.0,0.005]
[1740514066141,0.0008486,88196.0,88187.0,0.09065156]
[1740514066338,0.0008486,88196.0,88188.0,0.11374753]
[1740514066575,0.226725,88213.0,88195.0,0.170077]
[1740514066576,0.17781754,88210.0,88195.0,0.170077]
[1740514066776,0.00012762,88213.0,88188.0,0.11374753]
[1740514066951,0.22673,88211.0,88188.0,0.34053453]
[1740514067158,0.226736,88209.0,88188.0,0.34053453]
[1740514067391,0.001,88196.0,88195.0,0.1717742]
[1740514067557,0.0018486,88196.0,88195.0,0.1717742]
[1740514067764,0.00012762,88213.0,88195.0,0.0016972]
[1740514067939,0.170056,88207.0,88199.0,0.170069]
[1740514068340,0.00012762,88213.0,88195.0,0.0016972]
[1740514068542,0.03181423,88213.0,88212.0,0.250044]
[1740514068766,0.00012762,88213.0,88212.0,0.250044]
[1740514070116,0.00012762,88213.0,88212.0,0.36379153]
[1740514070319,0.00012762,88213.0,88212.0,0.37833238]
[1740514070520,0.00112762,88213.0,88212.0,0.38333238]
[1740514071183,0.00012762,88213.0,88212.0,0.08]
[1740514071337,0.001,88213.0,88212.0,0.087]
[1740514071893,0.171042,88213.0,88212.0,0.087]
[1740514072126,0.001,88213.0,88212.0,0.087]
[1740514072525,0.001,88213.0,88212.0,0.257044]
[1740514072735,0.001,88213.0,88212.0,0.087]
[1740514073303,0.20197808,88221.0,88212.0,0.250043]
[1740514073512,0.170025,88223.0,88214.0,0.170039]
[1740514073682,0.03179117,88223.0,88212.0,0.087]
[1740514073928,0.170042,88213.0,88212.0,0.007]
[1740514074085,0.170069,88200.0,88191.0,0.076]
[1740514074286,0.001,88213.0,88212.0,0.007]
[1740514074485,0.471042,88213.0,88212.0,0.007]
[1740514075105,0.171042,88213.0,88212.0,0.007]
[1740514075520,0.001,88213.0,88212.0,0.007]
[1740514075730,0.3293,88217.0,88196.0,0.01454085]
[1740514076076,0.3293,88217.0,88195.0,0.00182482]
[1740514076635,0.170055,88207.0,88197.0,0.170072]
[1740514076838,0.170042,88213.0,88212.0,0.002]
[1740514077255,0.556016,88217.0,88195.0,0.00182482]
[1740514077256,0.3293,88217.0,88195.0,0.00182482]
[1740514077661,0.3303,88217.0,88207.0,0.170053]
[1740514077864,0.226719,88215.0,88201.0,0.170064]
[1740514078063,0.3303,88217.0,88196.0,0.11374753]
[1740514078327,0.3303,88217.0,88206.0,0.226741]
[1740514078539,0.3303,88217.0,88206.0,0.11374753]
[1740514078694,0.3303,88217.0,88214.0,0.170041]
[1740514078895,0.3303,88217.0,88206.0,0.11374753]
[1740514078896,0.03232613,88223.0,88206.0,0.11374753]
[1740514079075,0.001,88217.0,88212.0,0.226725]
[1740514079279,0.001,88217.0,88206.0,0.11374753]
[1740514079280,0.001,88217.0,88208.0,0.0799]
[1740514079484,0.03296655,88223.0,88210.0,0.170048]
[1740514079799,0.226701,88222.0,88214.0,0.002]
[1740514080002,0.3,88229.0,88214.0,0.002]
[1740514080186,0.3,88241.0,88214.0,0.002]
[1740514080381,0.170034,88218.0,88208.0,0.0799]
[1740514080569,0.3,88235.0,88208.0,0.0799]
[1740514080785,0.170039,88215.0,88208.0,0.0799]
[1740514080990,0.226714,88217.0,88208.0,0.0799]
[1740514081223,0.3,88236.0,88208.0,0.0799]
[1740514081417,0.2267,88222.0,88208.0,0.0799]
[1740514081624,0.226667,88235.0,88208.0,0.0799]
[1740514081826,0.3,88236.0,88208.0,0.0799]
[1740514082045,0.3,88236.0,88208.0,0.0809]
[1740514082046,0.007,88235.0,88208.0,0.0809]
[1740514082240,0.03162053,88236.0,88214.0,0.001]
[1740514082444,0.170039,88215.0,88214.0,0.001]
[1740514082641,0.3293,88234.0,88208.0,0.0799]
[1740514082844,0.170048,88211.0,88208.0,0.0799]
[1740514083059,0.3,88235.0,88199.0,0.0806]
[1740514083275,0.3,88235.0,88208.0,0.001]
[1740514083276,0.226672,88233.0,88208.0,0.001]
[1740514083473,0.170004,88233.0,88210.0,0.09065156]
[1740514083686,0.04318121,88236.0,88210.0,0.09065156]
[1740514083903,0.170028,88221.0,88210.0,0.09065156]
[1740514084122,0.04318121,88236.0,88221.0,0.226703]
[1740514084294,0.03918121,88236.0,88222.0,0.19494753]
[1740514084494,0.03218121,88236.0,88228.0,0.09065156]
[1740514084763,0.0008455,88272.0,88237.0,0.18453685]
[1740514084764,0.0008445,88268.0,88237.0,0.18453685]
[1740514084965,0.0008445,88268.0,88237.0,0.38107079]
[1740514085156,0.1707815,88268.0,88237.0,0.67948438]
[1740514085425,0.03222633,88264.0,88237.0,0.67948438]
[1740514085578,0.03222633,88264.0,88237.0,1.00458438]
[1740514085774,0.03222633,88264.0,88237.0,0.58088838]
[1740514085992,0.03222633,88264.0,88237.0,0.75088438]
[1740514086197,0.03222633,88264.0,88237.0,0.74688438]
[1740514086784,0.0008445,88268.0,88237.0,0.74688438]
[1740514087344,0.0008445,88268.0,88237.0,1.04688438]
[1740514087561,0.0008445,88268.0,88248.0,0.544975]
[1740514087775,0.00097584,88249.0,88248.0,0.98382253]